bitfinex/quotes_SOLUSD_20260113
["timestamp","ask_amount","ask_price","bid_price","bid_amount"]
[1768279242740,0.10388151,138.6,138.57,0.72245455]
[1768279242950,2.92667434,138.61,138.58,0.72245455]
[1768279243247,0.79208133,138.61,138.58,0.72245455]
[1768279243928,0.79208133,138.61,138.58,7.93846979]
[1768279244128,0.79208133,138.61,138.58,10.0730628]
[1768279244725,0.2,138.61,138.58,10.0730628]
[1768279246257,0.299,138.61,138.58,7.93846979]
[1768279246547,0.299,138.61,138.58,2.85704756]
[1768279247129,0.299,138.61,138.58,0.72245455]
[1768279252345,0.58715051,138.6,138.57,10.07344156]
[1768279253054,0.79208133,138.61,138.58,0.72245455]
[1768279253731,0.099,138.6,138.58,0.72245455]
[1768279254855,0.099,138.6,138.57,7.216394]
[1768279255027,0.099,138.6,138.57,7.93884855]
[1768279256848,0.79208133,138.61,138.58,0.72245455]
[1768279264964,0.2,138.61,138.59,0.66046794]
[1768279265163,0.2,138.61,138.6,0.17120584]
[1768279265349,0.2,138.61,138.6,0.06895864]
[1768279266870,0.2,138.61,138.6,2.20355165]
[1768279267363,0.79208133,138.63,138.6,0.06895864]
[1768279267666,0.79208133,138.63,138.6,2.20355165]
[1768279269165,0.2,138.63,138.61,0.66046794]
[1768279269353,0.2,138.64,138.62,2.79506095]
[1768279269755,0.2,138.64,138.63,0.66046794]
[1768279269958,0.81049825,138.65,138.63,2.79506095]
[1768279270366,0.2,138.65,138.64,0.66046794]
[1768279270665,0.2,138.65,138.64,0.49822565]
[1768279270866,0.1577584,138.65,138.64,0.49822565]
[1768279271957,0.1577584,138.65,138.64,2.63281866]
[1768279272158,0.1577584,138.65,138.64,0.49822565]
[1768279272673,0.1577584,138.65,138.63,9.34779306]
[1768279272978,0.1577584,138.65,138.63,10.008261]
[1768279275352,0.1577584,138.65,138.63,11.2062586]
[1768279276287,0.1577584,138.65,138.63,7.87366799]
[1768279278793,0.81531222,138.65,138.63,7.87366799]
[1768279278955,0.81531222,138.65,138.63,7.21320005]
[1768279279580,0.81531222,138.65,138.63,7.88190428]
[1768279282162,0.1577584,138.65,138.64,11.2142204]
[1768279282369,0.2,138.66,138.64,11.2142204]
[1768279283182,0.2,138.66,138.64,7.88162979]
[1768279283375,0.2,138.66,138.64,11.2142204]
[1768279284886,0.2,138.66,138.65,4.00129484]
[1768279286183,0.2,138.66,138.65,3.33259061]
[1768279286680,0.2,138.66,138.65,4.00129484]
[1768279292294,0.2,138.66,138.65,3.33259061]
[1768279292478,0.2,138.66,138.64,7.88162979]
[1768279292479,0.2,138.66,138.64,11.2142204]
[1768279293795,0.2,138.67,138.65,4.00129484]
[1768279293989,0.85755382,138.67,138.65,4.00129484]
[1768279294893,0.85755382,138.67,138.65,3.33259061]
[1768279295897,0.85755382,138.67,138.65,10.54493292]
[1768279296197,0.85755382,138.67,138.66,3.33259061]
[1768279299696,0.2,138.67,138.66,3.33259061]
[1768279300695,0.2,138.67,138.66,3.99706554]
[1768279300896,0.68466,138.68,138.66,3.33259061]
[1768279301094,0.64242399,138.68,138.66,3.33259061]
[1768279304196,0.64242399,138.68,138.65,11.20940785]
[1768279307000,0.64242399,138.68,138.66,3.99706554]
[1768279308902,0.88466,138.69,138.66,3.99706554]
[1768279309279,0.88466,138.69,138.66,0.66447493]
[1768279309905,0.68466,138.67,138.64,7.87722681]
[1768279310578,0.68466,138.67,138.63,3.33259061]
[1768279310579,0.68466,138.66,138.63,0.66447493]
[1768279310785,0.68466,138.65,138.62,0.66447493]
[1768279311395,0.68466,138.65,138.62,3.99706554]
[1768279312707,0.68466,138.65,138.63,3.99706554]
[1768279314399,0.68466,138.66,138.63,3.99706554]
[1768279320717,0.68466,138.66,138.63,0.66447493]
[1768279321514,0.68466,138.66,138.64,3.33259061]
[1768279321811,0.68466,138.66,138.64,0.85962669]
[1768279322511,13.84466,138.68,138.65,3.99706554]
[1768279325415,13.16,138.68,138.66,4.02845544]
[1768279325604,0.89940949,138.69,138.67,0.69586483]
[1768279328297,0.2,138.69,138.67,0.69586483]
[1768279328816,0.2,138.69,138.67,4.02845544]
[1768279329495,0.2,138.69,138.68,3.33259061]
[1768279330299,0.2,138.69,138.67,4.02845544]
[1768279331396,0.2,138.69,138.68,0.69586483]
[1768279331711,0.2,138.69,138.68,3.51712633]
[1768279332403,0.2,138.69,138.68,3.33259061]
[1768279335326,0.2,138.69,138.68,2.13145306]
[1768279336297,0.2,138.69,138.67,2.8487856]
[1768279344023,0.65310427,138.67,138.64,7.92992434]
[1768279344218,0.23946749,138.67,138.65,0.71733254]
[1768279345004,0.23946749,138.67,138.63,10.06205071]
[1768279346345,0.23946749,138.67,138.64,2.8487856]
[1768279347124,0.23946749,138.67,138.63,2.8487856]
[1768279347329,0.65310427,138.66,138.63,2.8487856]
[1768279350730,0.65310427,138.66,138.63,0.71733254]
[1768279354553,0.65310427,138.66,138.63,2.8487856]
[1768279357038,0.65310427,138.66,138.63,2.13145306]
[1768279357420,0.65310427,138.66,138.63,2.82573643]
[1768279359947,0.65310427,138.66,138.63,0.69428337]
[1768279360127,0.65310427,138.66,138.63,2.82573643]
[1768279374648,0.65310427,138.66,138.63,0.69428337]
[1768279374947,0.65310427,138.66,138.62,10.03952273]
[1768279378449,0.65310427,138.66,138.63,0.69428337]
[1768279380147,0.65310427,138.66,138.63,2.82573643]
[1768279380957,0.65310427,138.66,138.63,0.69428337]
[1768279381140,0.65310427,138.66,138.63,2.82573643]
[1768279383236,0.65310427,138.66,138.64,0.69428337]
[1768279383869,0.65310427,138.66,138.64,2.82573643]
[1768279384054,0.2,138.69,138.66,0.69428337]
[1768279384257,0.2,138.69,138.67,2.13145306]
[1768279384454,0.2,138.69,138.68,2.07145306]
[1768279384643,0.2,138.69,138.68,2.01145306]
[1768279386157,0.2,138.69,138.67,2.80751458]
[1768279387657,0.91294329,138.69,138.67,2.13145306]
[1768279389542,0.71294329,138.68,138.66,2.13145306]
[1768279390252,0.71294329,138.68,138.63,0.67606152]
[1768279390455,0.71294329,138.68,138.64,2.13145306]
[1768279391066,0.71294329,138.68,138.65,2.13145306]
[1768279392961,0.71294329,138.67,138.64,2.80751458]
[1768279393867,0.71294329,138.67,138.65,2.13145306]
[1768279397357,0.71294329,138.67,138.65,3.3318301]
[1768279399773,0.71294329,138.67,138.64,0.67606152]
[1768279399974,0.71294329,138.67,138.65,3.3318301]
[1768279404574,0.71932531,138.68,138.65,3.9904126]
[1768279405073,0.71932531,138.68,138.66,0.6585825]
[1768279405278,0.71932531,138.68,138.66,3.9904126]
[1768279405659,0.91932531,138.69,138.67,3.9904126]
[1768279405858,0.91932531,138.69,138.67,0.99197886]
[1768279408555,0.91932531,138.69,138.66,3.3318301]
[1768279409779,0.71932531,138.68,138.66,3.3318301]
[1768279411881,0.2,138.69,138.66,3.59155152]
[1768279412383,0.91932531,138.69,138.67,3.3318301]
[1768279413281,0.91932531,138.69,138.66,3.59155152]
[1768279413985,0.71932531,138.68,138.65,3.3318301]
[1768279414372,0.71932531,138.68,138.64,3.59155152]
[1768279417081,0.71857597,138.67,138.63,3.59155152]
[1768279417288,0.71857597,138.67,138.64,3.3318301]
[1768279419309,0.71857597,138.67,138.64,3.59155152]
[1768279419909,0.71857597,138.67,138.65,3.3318301]
[1768279420689,0.71857597,138.67,138.64,3.3318301]
[1768279421204,0.71857597,138.67,138.65,3.3318301]
[1768279424211,0.71857597,138.67,138.66,3.3318301]
[1768279424410,0.71857597,138.67,138.66,0.87566588]
[1768279426008,0.2,138.69,138.66,1.5894083]
[1768279426186,0.2,138.69,138.66,0.87566588]
[1768279426386,0.2,138.69,138.67,3.3318301]
[1768279426606,0.2,138.69,138.67,2.6068301]
[1768279426815,0.2,138.69,138.67,1.41012749]
[1768279429613,0.2,138.69,138.67,2.12386991]
[1768279430411,0.2,138.69,138.67,1.41012749]
[1768279431488,0.2,138.69,138.67,2.12386991]
[1768279436815,0.2,138.69,138.67,3.90507581]
[1768279441435,0.2,138.69,138.68,0.71374242]
[1768279443007,0.1,138.7,138.69,0.71374242]
[1768279443196,0.1,138.7,138.69,3.94334767]
[1768279443520,0.1,138.76,138.69,45.05979834]
[1768279443724,7.30553936,138.79,138.76,0.71374242]
[1768279443725,0.1,138.79,138.76,0.71374242]
[1768279443936,0.1,138.79,138.77,3.3318301]
[1768279444422,0.1,138.79,138.76,4.04557252]
[1768279444622,0.1,138.79,138.73,0.66968573]
[1768279444800,0.1,138.79,138.75,3.3318301]
[1768279444806,3.4318301,138.79,138.75,3.3318301]
[1768279445000,7.30571228,138.78,138.74,0.66968573]
[1768279445209,7.30571228,138.78,138.75,3.3318301]
[1768279445825,7.95143384,138.78,138.75,3.3318301]
[1768279446203,7.95143384,138.78,138.75,4.00151583]
[1768279449417,0.099,138.77,138.75,3.3318301]
[1768279450623,0.099,138.77,138.74,4.00151583]
[1768279450815,0.64025434,138.76,138.73,4.00151583]
[1768279451128,0.64025434,138.76,138.73,0.66968573]
[1768279451633,3.97208444,138.76,138.73,0.66968573]
[1768279452010,0.64025434,138.76,138.73,0.66968573]
[1768279453135,0.64025434,138.76,138.72,0.66968573]
[1768279454426,3.97208444,138.76,138.72,0.66968573]
[1768279457330,2.77043707,138.76,138.72,0.66968573]
[1768279458735,0.64025434,138.76,138.72,0.66968573]
[1768279467946,0.10441254,138.75,138.72,0.66968573]
[1768279475844,9.98269332,138.76,138.72,0.66968573]
[1768279478333,0.099,138.75,138.72,0.66968573]
[1768279479951,0.099,138.75,138.71,0.67274309]
[1768279495866,0.099,138.75,138.72,0.67274309]
[1768279507580,0.099,138.75,138.7,0.67205572]
[1768279507756,0.099,138.75,138.71,0.67205572]
[1768279512187,7.85267199,138.76,138.71,0.67205572]
[1768279520772,0.099,138.75,138.71,0.67205572]
[1768279521281,7.85267199,138.76,138.71,0.67205572]
[1768279522997,0.099,138.75,138.71,0.67205572]
[1768279539202,10.63526692,138.75,138.71,0.67205572]
[1768279544192,0.64025434,138.74,138.71,0.67205572]
[1768279544388,3.43308646,138.73,138.69,0.70220198]
[1768279549310,0.63489592,138.72,138.69,0.70220198]
[1768279549904,3.96356984,138.72,138.69,0.70220198]
[1768279551008,0.63489592,138.72,138.69,0.70220198]
[1768279554218,3.32867392,138.71,138.69,0.70220198]
[1768279554513,3.96892826,138.71,138.67,0.70220198]
[1768279554704,0.10441254,138.7,138.67,0.70220198]
[1768279555217,3.32867392,138.71,138.67,0.70220198]
[1768279556218,7.85407046,138.73,138.68,0.70220198]
[1768279556408,3.97439548,138.73,138.68,0.70220198]
[1768279557496,3.97439548,138.73,138.69,0.70220198]
[1768279560816,3.32867392,138.73,138.69,0.70220198]
[1768279561018,0.64572156,138.75,138.7,0.70220198]
[1768279561315,11.18120845,138.76,138.71,0.70220198]
[1768279561694,7.85253453,138.76,138.71,0.70220198]
[1768279561892,7.85253453,138.76,138.72,0.70220198]
[1768279563113,0.099,138.75,138.72,0.70220198]
[1768279575533,0.099,138.75,138.72,0.60001057]
[1768279576139,3.42767392,138.75,138.72,0.60001057]
[1768279577342,2.22944744,138.75,138.72,0.60001057]
[1768279580138,2.13044744,138.74,138.72,0.49782659]
[1768279580540,2.79011325,138.74,138.71,7.20922969]
[1768279582141,2.79011325,138.74,138.71,7.86850696]
[1768279584246,0.70184698,138.74,138.71,7.86850696]
[1768279586587,0.70184698,138.74,138.72,0.65927727]
[1768279586722,2.13044744,138.75,138.72,0.65927727]
[1768279586922,2.83229442,138.75,138.72,0.65927727]
[1768279589143,0.70184698,138.75,138.72,7.86800102]
[1768279610671,2.13044744,138.74,138.72,7.86800102]
[1768279614380,0.70184698,138.75,138.73,0.70737981]
[1768279614381,2.83229442,138.75,138.73,0.70737981]
[1768279615156,2.13044744,138.75,138.73,0.70737981]
[1768279617477,2.13044744,138.75,138.74,0.70737981]
[1768279617777,2.13044744,138.75,138.73,7.20815448]
[1768279619578,2.13044744,138.75,138.73,7.91553429]
[1768279620585,2.13044744,138.77,138.74,0.70737981]
[1768279620764,0.1,138.78,138.73,7.20815448]
[1768279620765,2.23044744,138.78,138.73,7.20815448]
[1768279621586,2.88554241,138.78,138.73,25.22877006]
[1768279621881,1e-08,138.78,138.74,2.13044744]
[1768279622075,1e-08,138.79,138.76,2.13044744]
[1768279622374,1e-08,138.79,138.73,25.22877006]
[1768279622375,1e-08,138.79,138.75,13.16]
[1768279622677,1e-08,138.79,138.76,2.13044744]
[1768279623871,1e-08,138.79,138.77,7.20616848]
[1768279625494,1e-08,138.79,138.77,7.14616848]
[1768279625982,1e-08,138.8,138.77,2.13044744]
[1768279626282,1e-08,138.8,138.78,2.13044744]
[1768279627081,1e-08,138.8,138.79,7.20513005]
[1768279629284,1e-08,138.81,138.79,7.20513005]
[1768279629491,1e-08,138.81,138.79,9.33557749]
[1768279632187,1e-08,138.82,138.8,2.13044744]
[1768279632393,1e-08,138.82,138.79,7.20513005]
[1768279632694,1e-08,138.82,138.79,9.33557749]
[1768279632990,1e-08,138.82,138.79,7.20513005]
[1768279633184,1e-08,138.82,138.79,9.33557749]
[1768279633488,0.1,138.83,138.79,9.33557749]
[1768279635210,0.1,138.83,138.81,7.20409192]
[1768279639677,0.1,138.83,138.81,3.32366962]
[1768279640574,0.1347457,138.85,138.81,3.32366962]
[1768279640777,0.1347457,138.85,138.82,3.32366962]
[1768279640995,0.82206642,138.85,138.82,3.32366962]
[1768279641378,0.82206642,138.85,138.81,3.32366962]
[1768279641379,0.1347457,138.85,138.81,3.32366962]
[1768279641680,0.1347457,138.85,138.82,7.20357297]
[1768279644197,0.1347457,138.85,138.79,25.21795518]
[1768279644499,0.1347457,138.85,138.81,3.32366962]
[1768279645592,0.68732072,138.84,138.82,7.20357297]
[1768279646098,4.14573604,138.85,138.82,7.20357297]
[1768279646888,0.68732072,138.83,138.79,21.33599313]
[1768279647691,0.68732072,138.83,138.8,28.53980794]
[1768279647992,4.14573604,138.85,138.81,3.32366962]
[1768279648198,0.82206642,138.85,138.81,3.32366962]
[1768279648899,0.82206642,138.85,138.81,24.93828109]
[1768279649515,0.82206642,138.85,138.81,21.61461147]
[1768279649818,0.82206642,138.85,138.82,7.20357297]
[1768279650412,4.14573604,138.85,138.82,7.20357297]
[1768279651190,0.82206642,138.85,138.82,7.20357297]
[1768279654616,0.1347457,138.85,138.82,7.20357297]
[1768279655518,1e-08,138.85,138.83,3.32366962]
[1768279656019,1e-08,138.85,138.83,6.20541019]
[1768279659228,1e-08,138.85,138.83,10.52639002]
[1768279659520,1e-08,138.85,138.83,7.2027204]
[1768279660030,0.68290841,138.85,138.83,7.2027204]
[1768279661218,8.28743062,138.87,138.83,7.45932048]
[1768279661406,8.24528179,138.87,138.83,7.2027204]
[1768279663120,4.963761,138.87,138.83,7.2027204]
[1768279663299,0.6829084,138.86,138.83,7.2027204]
[1768279663926,0.6829084,138.86,138.83,7.45932048]
[1768279664513,0.6829084,138.85,138.83,7.2027204]
[1768279670432,5.6466694,138.82,138.79,3.5802697]
[1768279670605,5.53142877,138.82,138.81,7.20397722]
[1768279670927,5.53142877,138.82,138.81,6.47897722]
[1768279670928,5.47380848,138.82,138.81,6.47897722]
[1768279671134,5.43165948,138.82,138.81,6.47897722]
[1768279671428,5.33189002,138.82,138.81,6.47897722]
[1768279671925,0.31050871,138.82,138.8,7.20461095]
[1768279682925,5.27426971,138.82,138.8,7.20461095]
[1768279685533,0.31050871,138.82,138.8,7.20461095]
[1768279695168,0.31050871,138.82,138.8,7.91035702]
[1768279696751,4.963761,138.82,138.8,7.91035702]
[1768279697671,4.963761,138.82,138.8,0.70574607]
[1768279702075,4.963761,138.82,138.8,7.9103232]
[1768279705584,0.6581291,138.84,138.81,2.83368012]
[1768279706477,0.6581291,138.84,138.81,0.70574607]
[1768279707382,2.78606315,138.84,138.81,0.70574607]
[1768279707574,4.963761,138.83,138.81,0.70574607]
[1768279710789,5.6218901,138.83,138.81,0.70574607]
[1768279713885,4.963761,138.83,138.81,0.70574607]
[1768279714784,5.67094652,138.83,138.81,0.70574607]
[1768279714987,4.963761,138.83,138.81,0.70574607]
[1768279716280,5.67094652,138.83,138.81,0.70574607]
[1768279717396,4.963761,138.81,138.79,0.72166179]
[1768279717588,2.12793405,138.81,138.78,0.72166179]
[1768279719487,2.83511957,138.81,138.78,0.72166179]
[1768279729488,4.963761,138.8,138.78,0.72166179]
[1768279729810,4.933761,138.8,138.79,0.72166179]
[1768279730912,4.933761,138.8,138.78,0.72166179]
[1768279731293,2.12793405,138.83,138.8,0.72166179]
[1768279731593,0.7024068,138.82,138.79,2.12793405]
[1768279731791,4.963761,138.81,138.79,2.12793405]
[1768279731994,5.19780483,138.81,138.79,2.12793405]
[1768279732210,4.963761,138.81,138.79,2.84959584]
[1768279732408,4.963761,138.82,138.8,0.72166179]
[1768279732711,5.6661678,138.82,138.79,10.05461886]
[1768279733308,5.6661678,138.82,138.79,7.92668481]
[1768279733496,5.6661678,138.82,138.79,10.05461886]
[1768279734817,0.23404383,138.81,138.79,7.92668481]
[1768279736515,0.23404383,138.81,138.79,7.20502302]
[1768279737423,0.23404383,138.81,138.78,9.33342957]
[1768279739733,7.32100794,138.83,138.79,0.72166179]
[1768279741038,4.963761,138.8,138.78,0.72166179]
[1768279741223,4.93376101,138.8,138.78,0.72166179]
[1768279744623,4.963761,138.81,138.79,0.67261125]
[1768279745013,4.963761,138.82,138.8,0.67261125]
[1768279745817,4.963761,138.83,138.8,0.67261125]
[1768279746330,7.35736524,138.83,138.8,0.67261125]
[1768279753023,7.09169505,138.83,138.8,0.67261125]
[1768279753340,7.35736524,138.83,138.8,0.67261125]
[1768279753842,7.09169505,138.83,138.8,0.67261125]
[1768279761144,0.23890131,138.82,138.8,7.20450297]
[1768279761526,0.69750025,138.83,138.8,7.91157132]
[1768279763840,0.69750025,138.83,138.81,0.70706835]
[1768279765347,4.963761,138.84,138.81,7.91092729]
[1768279765719,5.20266231,138.84,138.81,7.91092729]
[1768279766835,3.56310472,138.84,138.81,7.91092729]
[1768279767234,0.23890131,138.84,138.81,7.91092729]
[1768279767534,3.56310472,138.84,138.82,0.70706835]
[1768279769153,3.56310472,138.84,138.81,7.91092729]
[1768279771554,4.963761,138.82,138.8,0.70706835]
[1768279771850,5.20720244,138.82,138.8,0.70706835]
[1768279772228,4.963761,138.82,138.8,0.70706835]
[1768279776125,0.23890131,138.82,138.8,0.70706835]
[1768279785872,0.68035041,138.83,138.8,0.70706835]
[1768279788573,5.64411141,138.84,138.81,0.70812965]
[1768279788751,0.68035041,138.84,138.81,4.03233306]
[1768279791875,4.963761,138.85,138.82,0.70812965]
[1768279792074,5.21964065,138.86,138.83,4.03233306]
[1768279794480,0.25587965,138.86,138.84,3.32420341]
[1768279794660,0.25587965,138.86,138.83,3.32420341]
[1768279794858,5.64411141,138.87,138.84,0.70812965]
[1768279795175,0.25587965,138.86,138.84,3.22206248]
[1768279795376,0.25587965,138.86,138.83,11.23537317]
[1768279796079,0.26008192,138.84,138.82,7.91157734]
[1768279796269,0.26008192,138.84,138.82,11.23578075]
[1768279796669,4.963761,138.85,138.82,11.23578075]
[1768279796876,5.64411141,138.85,138.82,11.23578075]
[1768279797179,5.64411141,138.85,138.82,7.91157734]
[1768279797380,0.25587965,138.84,138.81,16.48420341]
[1768279797885,0.25587965,138.84,138.81,23.68818232]
[1768279798465,0.25587965,138.84,138.81,24.39631197]
[1768279800564,0.25587965,138.84,138.82,3.32420341]
[1768279801283,4.963761,138.86,138.83,0.70812965]
[1768279801485,5.21964065,138.87,138.84,4.03233306]
[1768279801690,5.21964065,138.87,138.84,3.93019109]
[1768279802395,0.68035041,138.86,138.84,3.93019109]
[1768279803583,0.68035041,138.86,138.82,3.32420341]
[1768279804585,0.68035041,138.86,138.82,10.52775996]
[1768279804791,0.68035041,138.86,138.82,11.22678684]
[1768279805168,0.68035041,138.86,138.83,0.69902688]
[1768279805391,0.68035041,138.86,138.83,4.02323029]
[1768279807891,4.963761,138.87,138.84,0.69902688]
[1768279808092,5.28544708,138.87,138.84,0.69902688]
[1768279808594,5.28544708,138.87,138.84,4.02323029]
[1768279809379,4.963761,138.87,138.85,0.69902688]
[1768279815099,5.28544708,138.87,138.84,11.24122605]
[1768279817100,5.28544708,138.87,138.85,0.71452663]
[1768279817297,5.28544708,138.87,138.84,10.52669942]
[1768279818504,0.32168608,138.87,138.84,10.52669942]
[1768279819211,0.32168608,138.87,138.84,11.24122605]
[1768279819904,0.32168608,138.87,138.84,7.91702264]
[1768279820094,0.32168608,138.87,138.84,11.24122605]
[1768279820408,5.68647341,138.88,138.85,0.71452663]
[1768279821007,9.01067682,138.88,138.85,0.71452663]
[1768279822608,9.01067682,138.88,138.85,0.65452663]
[1768279822792,9.01067682,138.88,138.85,0.61239735]
[1768279822998,5.68647341,138.88,138.85,7.20189788]
[1768279823322,5.68647341,138.88,138.85,9.32786044]
[1768279824725,5.68647341,138.88,138.85,0.71452663]
[1768279827430,0.51728122,138.87,138.85,0.71452663]
[1768279828428,0.51728122,138.87,138.84,10.04261014]
[1768279829532,5.68647341,138.88,138.85,0.71452663]
[1768279830735,4.963761,138.88,138.86,0.71452663]
[1768279835134,5.48104222,138.88,138.85,10.04156886]
[1768279836336,5.48104222,138.88,138.85,7.9156063]
[1768279837120,5.48104222,138.88,138.86,0.7137954]
[1768279837628,5.48104222,138.88,138.85,0.7137954]
[1768279846139,4.963761,138.88,138.85,0.7137954]
[1768279846545,5.51119121,138.88,138.85,0.7137954]
[1768279853153,5.6545716,138.88,138.85,0.7137954]
[1768279855358,5.6545716,138.88,138.85,7.91566525]
[1768279859957,5.6545716,138.88,138.85,0.7137954]
[1768279860157,4.963761,138.86,138.84,7.91614411]
[1768279863661,0.68939114,138.86,138.84,7.91614411]
[1768279864962,5.63163874,138.87,138.84,7.90095131]
[1768279865367,4.963761,138.87,138.85,0.6986026]
[1768279865546,0.66787774,138.86,138.84,7.20234871]
[1768279865739,0.66787774,138.86,138.83,7.90150016]
[1768279866046,4.963761,138.85,138.83,7.90150016]
[1768279866357,3.93376102,138.85,138.83,7.90150016]
[1768279871810,3.90376103,138.85,138.83,7.90150016]
[1768279873482,4.47532858,138.85,138.83,7.20289756]
[1768279874302,0.66691463,138.84,138.81,0.71163023]
[1768279874506,4.963761,138.83,138.81,0.71163023]
[1768279875003,4.93376101,138.83,138.81,0.71163023]
[1768279875306,5.50628203,138.83,138.81,0.71163023]
[1768279875607,5.50628203,138.83,138.81,7.91554592]
[1768279877810,0.72252083,138.84,138.81,7.91554592]
[1768279877985,0.72252083,138.84,138.82,0.71163023]
[1768279879682,0.51747089,138.83,138.81,7.91554592]
[1768279879900,0.51747089,138.83,138.81,0.71163023]
[1768279880587,0.51747089,138.83,138.81,7.91563409]
[1768279881086,2.84848339,138.84,138.81,7.91563409]
[1768279881782,0.72252083,138.84,138.81,7.91563409]
[1768279881995,0.72252083,138.84,138.82,0.71163023]
[1768279883315,0.72252083,138.84,138.81,7.91563409]
[1768279888615,0.72252083,138.84,138.82,0.71163023]
[1768279889817,0.72252083,138.84,138.81,7.91563409]
[1768279893118,0.72252083,138.86,138.83,0.71163023]
[1768279893414,4.04641989,138.86,138.83,0.71163023]
[1768279893897,0.51747089,138.85,138.83,0.71163023]
[1768279894311,0.51747089,138.85,138.82,7.91474814]
[1768279897317,3.84136995,138.85,138.82,7.91474814]
[1768279897519,3.84136995,138.85,138.82,0.71163023]
[1768279903724,0.51747089,138.85,138.82,0.71163023]
[1768279903908,3.84136995,138.85,138.83,0.69270516]
[1768279905428,0.51747089,138.85,138.83,0.69270516]
[1768279907227,0.51747089,138.85,138.82,7.20343618]
[1768279907414,0.51747089,138.85,138.82,7.89614134]
[1768279909627,0.51747089,138.85,138.82,0.69270516]
[1768279909829,0.65352131,138.84,138.81,7.89676921]
[1768279910032,0.62352132,138.84,138.81,7.89676921]
[1768279910729,0.59352133,138.84,138.81,7.89676921]
[1768279912326,0.59352133,138.84,138.82,0.69270516]
[1768279912522,3.32389906,138.85,138.82,0.69270516]
[1768279912723,3.97742037,138.85,138.82,0.69270516]
[1768279916328,0.65352131,138.85,138.82,0.69270516]
[1768279918932,0.65352131,138.85,138.8,21.33454316]
[1768279918933,3.97614896,138.83,138.8,0.69270516]
[1768279919118,13.81352131,138.84,138.81,0.69270516]
[1768279919316,17.13742037,138.84,138.81,0.69270516]
[1768279919825,16.48389906,138.84,138.81,0.69270516]
[1768279922638,13.16,138.84,138.81,0.69270516]
[1768279923636,3.32389906,138.85,138.81,0.69270516]
[1768279926139,3.85027949,138.85,138.81,0.69270516]
[1768279927843,3.32389906,138.84,138.81,0.69270516]
[1768279928645,4.02946993,138.84,138.81,0.69270516]
[1768279929338,20.36170129,138.86,138.82,0.68751847]
[1768279929339,0.70792491,138.86,138.82,0.68751847]
[1768279929529,4.03182397,138.87,138.83,0.68751847]
[1768279929715,0.70792491,138.87,138.83,0.68751847]
[1768279929912,3.32389906,138.87,138.83,0.68751847]
[1768279931420,24.39271446,138.88,138.83,0.68751847]
[1768279931736,24.39271446,138.88,138.84,0.68751847]
[1768279935952,21.0688154,138.88,138.84,0.68751847]
[1768279937251,0.47252087,138.87,138.84,0.68751847]
[1768279937443,0.47252087,138.87,138.83,0.6993989]
[1768279937638,0.67689857,138.86,138.83,0.6993989]
[1768279944449,0.50323694,138.85,138.81,7.90331391]
[1768279944643,0.50323694,138.85,138.82,0.6993989]
[1768279944979,3.99906102,138.84,138.81,0.6993989]
[1768279945260,0.67516196,138.84,138.81,0.6993989]
[1768279945662,15.96450595,138.85,138.81,0.6993989]
[1768279946435,13.16,138.85,138.81,0.6993989]
[1768279946836,13.66323694,138.85,138.81,0.6993989]
[1768279947560,15.79084432,138.85,138.81,0.6993989]
[1768279947765,13.66323694,138.85,138.82,0.6993989]
[1768279948061,2.12760738,138.84,138.82,0.6993989]
[1768279948358,13.83689857,138.85,138.82,0.6993989]
[1768279948359,15.96450595,138.85,138.82,0.6993989]
[1768279952561,13.16,138.85,138.82,0.6993989]
[1768279952968,25.59186513,138.87,138.83,0.6993989]
[1768279953264,22.99186513,138.87,138.83,0.6993989]
[1768279953570,0.67516196,138.86,138.83,0.6993989]
[1768279955351,23.14654334,138.87,138.83,0.6993989]
[1768279956051,9.98654334,138.87,138.83,0.6993989]
[1768279956254,15.94552253,138.87,138.84,0.70163305]
[1768279958273,2.64963791,138.86,138.82,0.70163305]
[1768279962176,20.36118518,138.87,138.83,0.70163305]
[1768279962373,23.14670771,138.87,138.83,0.70163305]
[1768279962569,15.94552253,138.87,138.83,0.70163305]
[1768279966486,0.52203053,138.86,138.83,0.70163305]
[1768279966973,0.52203053,138.86,138.82,7.90500405]
[1768279967280,0.52203053,138.86,138.82,7.44686603]
[1768279967883,0.52203053,138.86,138.83,0.70163305]
[1768279971082,13.81791515,138.87,138.84,0.70163305]
[1768279971684,0.52203053,138.86,138.83,7.90467185]
[1768279973384,0.52203053,138.86,138.84,0.70163305]
[1768279974590,13.81791515,138.87,138.84,0.70163305]
[1768279977495,15.94552253,138.87,138.84,0.70163305]
[1768279979896,13.16,138.87,138.84,0.70163305]
[1768279980067,0.1,138.89,138.84,0.70163305]
[1768279980068,0.1,138.89,138.87,0.70163305]
[1768279980268,0.05788291,138.89,138.87,2.82924043]
[1768279980468,0.05788291,138.89,138.87,0.70163305]
[1768279980772,0.02788291,138.89,138.87,0.70163305]